[Event "Fagernes Chess GM-Swiss 2025"]
[Site "Fagernes"]
[Date "2025.04.20"]
[Round "9.21"]
[White "Pang, Ethan"]
[Black "Khoo-Thwe, Louis"]
[Result "0-1"]
[Annotator "ChessBase"]
[ECO "C54"]
[WhiteElo "2257"]
[BlackElo "2118"]
[PlyCount "52"]
[EventDate "2025.04.12"]
[EventCountry "NOR"]
[SourceTitle "playchess.com"]
[Source "ChessBase"]
[SourceQuality "1"]
[TimeControl "40/6000+30:2400+30"]

1. e4 {[%emt 0:10:42]} e5 {[%emt 0:00:10]} 2. Nf3 {[%emt 0:00:04]} Nc6 {[%emt 0:00:07]} 3. Bc4 {[%emt 0:00:06]} Bc5 {[%emt 0:00:09]} 4. c3 {[%emt 0:00:14]} Nf6 {[%emt 0:00:07]} 5. d4 {[%emt 0:00:13]} exd4 {[%emt 0:00:16]} 6. e5 {[%emt 0:00:13]} d5 {[%emt 0:00:24]} 7. Be2 {[%emt 0:00:24]} Ne4 {[%emt 0:01:37]} 8. cxd4 {[%emt 0:00:31]} Bb6 {[%emt 0:05:40]} 9. O-O {[%emt 0:00:53]} f6 {[%emt 0:07:05]} 10. exf6 {[%emt 0:07:18]} Qxf6 {[%emt 0:02:18]} 11. Nc3 {[%emt 0:00:24]} Be6 {[%emt 0:01:44]} 12. Be3 {[%emt 0:02:04]} O-O-O {[%emt 0:03:39]} 13. Qa4 {[%emt 0:04:03]} g5 {[%emt 0:06:00]} 14. Nxe4 {[%emt 0:07:12]} dxe4 {[%emt 0:00:18]} 15. Nxg5 {[%emt 0:00:55]} Nxd4 {[%emt 0:01:37]} 16. Bc4 {[%emt 0:01:46]} Bxc4 {[%emt 0:08:49]} 17. Qxc4 {[%emt 0:01:28]} Rhg8 {[%emt 0:06:11]} 18. h4 {[%emt 0:04:21]} Nf3+ {[%emt 0:09:56]} 19. gxf3 {[%emt 0:06:54]} Bxe3 {[%emt 0:01:43]} 20. fxe3 {[%emt 0:00:51]} Rxg5+ {[%emt 0:00:59]} 21. hxg5 {[%emt 0:00:26]} Qxg5+ {[%emt 0:00:08]} 22. Kh1 {[%emt 0:00:53]} Qh6+ {[%emt 0:16:49]} 23. Kg1 {[%emt 0:09:10]} Qg5+ {[%emt 0:07:10]} 24. Kh1 {[%emt 0:00:10]} Qh4+ {[%emt 0:00:16]} 25. Kg1 {[%emt 0:00:13]} Qg3+ {[%emt 0:00:05]} 26. Kh1 {[%emt 0:00:06]} Rd6 {[%emt 0:01:21]} 0-1

[Event "Fagernes Chess GM-Swiss 2025"]
[Site "Fagernes"]
[Date "2025.04.20"]
[Round "9.22"]
[White "Ashwath Kaushik"]
[Black "Oksendal, Martin"]
[Result "0-1"]
[Annotator "ChessBase"]
[ECO "E60"]
[WhiteElo "1958"]
[BlackElo "2250"]
[PlyCount "100"]
[EventDate "2025.04.12"]
[EventCountry "NOR"]
[SourceTitle "playchess.com"]
[Source "ChessBase"]
[SourceQuality "1"]
[TimeControl "40/6000+30:2400+30"]

1. d4 {[%emt 0:00:04]} Nf6 {[%emt 0:04:53]} 2. Nf3 {[%emt 0:00:18]} g6 {[%emt 0:00:07]} 3. c4 {[%emt 0:00:20]} Bg7 {[%emt 0:00:03]} 4. e3 {[%emt 0:00:12]} O-O {[%emt 0:00:07]} 5. Be2 {[%emt 0:00:09]} c5 {[%emt 0:03:02]} 6. d5 {[%emt 0:00:14]} e6 {[%emt 0:01:05]} 7. Nc3 {[%emt 0:00:16]} exd5 {[%emt 0:01:54]} 8. cxd5 {[%emt 0:00:10]} d6 {[%emt 0:01:45]} 9. e4 {[%emt 0:02:44]} Bg4 {[%emt 0:09:06]} 10. Nd2 {[%emt 0:02:08]} Bxe2 {[%emt 0:03:51]} 11. Qxe2 {[%emt 0:00:47]} Nbd7 {[%emt 0:06:21]} 12. O-O {[%emt 0:00:20]} Nh5 {[%emt 0:07:36]} 13. g3 {[%emt 0:11:12]} Qe7 {[%emt 0:06:38]} 14. f4 {[%emt 0:10:58]} Rae8 {[%emt 0:07:58]} 15. Re1 {[%emt 0:08:23]} f5 {[%emt 0:04:18]} 16. Nb5 {[%emt 0:05:25]} Ndf6 {[%emt 0:05:07]} 17. e5 {[%emt 0:17:54]} dxe5 {[%emt 0:10:06]} 18. d6 {[%emt 0:07:43]} Qf7 {[%emt 0:02:22]} 19. fxe5 {[%emt 0:06:15]} Ne4 {[%emt 0:03:02]} 20. Nxe4 {[%emt 0:13:06]} fxe4 {[%emt 0:00:52]} 21. Be3 {[%emt 0:01:03]} Rxe5 {[%emt 0:07:39]} 22. Nxa7 {[%emt 0:04:54]} Qd7 {[%emt 0:04:50]} 23. Nb5 {[%emt 0:02:43]} Rf3 {[%emt 0:01:09]} 24. Bf2 {[%emt 0:07:53]} Qf7 {[%emt 0:06:31]} 25. Red1 {[%emt 0:04:59]} Nf6 {[%emt 0:06:37]} 26. b4 {[%emt 0:01:57]} Nd7 {[%emt 0:01:27]} 27. Bxc5 {[%emt 0:01:03]} e3 {[%emt 0:01:30]} 28. Rf1 {[%emt 0:00:49]} Rf2 {[%emt 0:00:22]} 29. Rxf2 {[%emt 0:00:30]} exf2+ {[%emt 0:00:02]} 30. Qxf2 {[%emt 0:00:25]} Qxf2+ {[%emt 0:00:19]} 31. Bxf2 {[%emt 0:00:10]} Rxb5 {[%emt 0:00:04]} 32. Rc1 {[%emt 0:00:11]} Kf7 {[%emt 0:01:46]} 33. Rc7 {[%emt 0:01:14]} Ke6 {[%emt 0:00:18]} 34. Bc5 {[%emt 0:00:16]} Nxc5 {[%emt 0:01:59]} 35. bxc5 {[%emt 0:00:21]} Bd4+ {[%emt 0:00:04]} 36. Kf1 {[%emt 0:00:53]} Bxc5 {[%emt 0:00:11]} 37. d7 {[%emt 0:00:29]} Be7 {[%emt 0:00:18]} 38. d8=Q {[%emt 0:00:26]} Bxd8 {[%emt 0:00:04]} 39. Rxh7 {[%emt 0:00:09]} Rb2 {[%emt 0:00:38]} 40. a4 {[%emt 0:00:30]} Be7 {[%emt 0:00:04]} 41. Rh8 {[%emt 0:02:49]} b6 {[%emt 0:00:51]} 42. h4 {[%emt 0:01:05]} Kf5 {[%emt 0:01:34]} 43. h5 {[%emt 0:04:44]} g5 {[%emt 0:02:34]} 44. h6 {[%emt 0:00:42]} Bf6 {[%emt 0:00:40]} 45. Rf8 {[%emt 0:03:16]} Rh2 {[%emt 0:01:43]} 46. Rb8 {[%emt 0:00:38]} Bd4 {[%emt 0:00:46]} 47. Rd8 {[%emt 0:02:22]} Be5 {[%emt 0:01:24]} 48. Rf8+ {[%emt 0:01:20]} Ke4 {[%emt 0:01:22]} 49. Rg8 {[%emt 0:00:23]} Kf3 {[%emt 0:00:44]} 50. Kg1 {[%emt 0:00:11]} Rxh6 {[%emt 0:00:05]} 0-1

[Event "Fagernes Chess GM-Swiss 2025"]
[Site "Fagernes"]
[Date "2025.04.20"]
[Round "9.23"]
[White "Aamodt, Peder Marcus"]
[Black "Hebbar, Eshaan"]
[Result "1/2-1/2"]
[Annotator "ChessBase"]
[ECO "A26"]
[WhiteElo "2242"]
[BlackElo "2175"]
[PlyCount "100"]
[EventDate "2025.04.12"]
[EventCountry "NOR"]
[SourceTitle "playchess.com"]
[Source "ChessBase"]
[SourceQuality "1"]
[TimeControl "40/6000+30:2400+30"]

1. c4 {[%emt 0:00:45]} Nf6 {[%emt 0:00:42]} 2. Nc3 {[%emt 0:00:06]} g6 {[%emt 0:02:09]} 3. g3 {[%emt 0:00:05]} Bg7 {[%emt 0:00:02]} 4. Bg2 {[%emt 0:00:07]} O-O {[%emt 0:00:06]} 5. d3 {[%emt 0:00:04]} d6 {[%emt 0:01:01]} 6. Rb1 {[%emt 0:00:27]} e5 {[%emt 0:03:09]} 7. e4 {[%emt 0:00:12]} Nc6 {[%emt 0:04:56]} 8. Nge2 {[%emt 0:01:39]} Ne7 {[%emt 0:08:37]} 9. O-O {[%emt 0:01:25]} Ne8 {[%emt 0:01:01]} 10. Be3 {[%emt 0:17:13]} f5 {[%emt 0:07:46]} 11. d4 {[%emt 0:02:08]} exd4 {[%emt 0:08:06]} 12. Nxd4 {[%emt 0:02:52]} c6 {[%emt 0:00:29]} 13. Qd2 {[%emt 0:04:02]} fxe4 {[%emt 0:02:02]} 14. Bxe4 {[%emt 0:06:43]} Nf6 {[%emt 0:00:22]} 15. Bg2 {[%emt 0:00:53]} d5 {[%emt 0:02:16]} 16. cxd5 {[%emt 0:19:38]} Nexd5 {[%emt 0:00:59]} 17. Bg5 {[%emt 0:05:33]} Qb6 {[%emt 0:09:44]} 18. Nxd5 {[%emt 0:07:10]} Nxd5 {[%emt 0:00:17]} 19. Bxd5+ {[%emt 0:00:11]} cxd5 {[%emt 0:00:07]} 20. Be3 {[%emt 0:00:03]} Bh3 {[%emt 0:03:01]} 21. Rfe1 {[%emt 0:04:37]} Qf6 {[%emt 0:01:02]} 22. Rbd1 {[%emt 0:01:13]} Kh8 {[%emt 0:05:25]} 23. Bg5 {[%emt 0:03:49]} Qb6 {[%emt 0:02:23]} 24. Bh6 {[%emt 0:02:43]} Rae8 {[%emt 0:03:13]} 25. Bxg7+ {[%emt 0:11:04]} Kxg7 {[%emt 0:00:03]} 26. Rxe8 {[%emt 0:00:10]} Rxe8 {[%emt 0:00:01]} 27. Nf3 {[%emt 0:01:27]} Bg4 {[%emt 0:17:08]} 28. Re1 {[%emt 0:09:16]} Rxe1+ {[%emt 0:06:48]} 29. Nxe1 {[%emt 0:00:06]} Qe6 {[%emt 0:01:19]} 30. f3 {[%emt 0:07:42]} Bf5 {[%emt 0:00:47]} 31. g4 {[%emt 0:01:07]} Qb6+ {[%emt 0:00:53]} 32. Qf2 {[%emt 0:00:52]} Bb1 {[%emt 0:00:30]} 33. Qxb6 {[%emt 0:00:27]} axb6 {[%emt 0:00:02]} 34. a3 {[%emt 0:00:08]} g5 {[%emt 0:01:06]} 35. Kf2 {[%emt 0:00:10]} Kf6 {[%emt 0:00:52]} 36. Ke3 {[%emt 0:01:39]} Ke5 {[%emt 0:00:07]} 37. Ng2 {[%emt 0:00:32]} d4+ {[%emt 0:02:44]} 38. Kd2 {[%emt 0:00:10]} b5 {[%emt 0:01:20]} 39. b3 {[%emt 0:00:56]} Bg6 {[%emt 0:01:44]} 40. h4 {[%emt 0:00:17]} h6 {[%emt 0:02:08]} 41. hxg5 {[%emt 0:28:53]} hxg5 {[%emt 0:01:10]} 42. Ke2 {[%emt 0:00:12]} Bf7 {[%emt 0:00:59]} 43. Ne1 {[%emt 0:01:41]} Bxb3 {[%emt 0:07:17]} 44. Nd3+ {[%emt 0:00:09]} Kd5 {[%emt 0:00:04]} 45. Kd2 {[%emt 0:04:21]} Bc4 {[%emt 0:02:45]} 46. Nf2 {[%emt 0:00:17]} Ke5 {[%emt 0:00:20]} 47. Nh3 {[%emt 0:00:19]} Kf6 {[%emt 0:00:22]} 48. f4 {[%emt 0:02:14]} gxf4 {[%emt 0:00:18]} 49. Nxf4 {[%emt 0:00:03]} Kg5 {[%emt 0:00:13]} 50. Ne2 {[%emt 0:01:34]} Kxg4 {[%emt 0:01:09]} 1/2-1/2

[Event "Fagernes Chess GM-Swiss 2025"]
[Site "Fagernes"]
[Date "2025.04.20"]
[Round "9.24"]
[White "Torfoss, Sivert Schanche"]
[Black "Skotheim, Andreas"]
[Result "1/2-1/2"]
[Annotator "ChessBase"]
[ECO "A50"]
[WhiteElo "2141"]
[BlackElo "2229"]
[PlyCount "100"]
[EventDate "2025.04.12"]
[EventCountry "NOR"]
[SourceTitle "playchess.com"]
[Source "ChessBase"]
[SourceQuality "1"]
[TimeControl "40/6000+30:2400+30"]

1. Nf3 {[%emt 0:01:28]} Nf6 {[%emt 0:02:11]} 2. c4 {[%emt 0:00:33]} b6 {[%emt 0:00:32]} 3. g3 {[%emt 0:01:44]} Bb7 {[%emt 0:00:17]} 4. d4 {[%emt 0:02:09]} g6 {[%emt 0:00:44]} 5. Bg2 {[%emt 0:00:38]} Bg7 {[%emt 0:00:20]} 6. O-O {[%emt 0:00:38]} O-O {[%emt 0:00:16]} 7. Nc3 {[%emt 0:06:53]} Ne4 {[%emt 0:02:24]} 8. Qc2 {[%emt 0:01:43]} Nxc3 {[%emt 0:00:33]} 9. Qxc3 {[%emt 0:00:15]} c5 {[%emt 0:00:39]} 10. Be3 {[%emt 0:03:50]} Bxf3 {[%emt 0:00:58]} 11. Bxf3 {[%emt 0:01:06]} Nc6 {[%emt 0:00:13]} 12. Bxc6 {[%emt 0:02:43]} dxc6 {[%emt 0:00:08]} 13. Rad1 {[%emt 0:04:37]} Qd7 {[%emt 0:00:37]} 14. Qd3 {[%emt 0:05:13]} cxd4 {[%emt 0:01:27]} 15. Bxd4 {[%emt 0:02:47]} Rfd8 {[%emt 0:00:37]} 16. Bxg7 {[%emt 0:00:21]} Qxd3 {[%emt 0:00:19]} 17. Rxd3 {[%emt 0:01:16]} Rxd3 {[%emt 0:00:14]} 18. exd3 {[%emt 0:00:05]} Kxg7 {[%emt 0:00:07]} 19. Re1 {[%emt 0:01:27]} Kf6 {[%emt 0:01:00]} 20. Kf1 {[%emt 0:00:43]} Rd8 {[%emt 0:05:44]} 21. Ke2 {[%emt 0:02:48]} a5 {[%emt 0:04:22]} 22. a3 {[%emt 0:06:28]} e5 {[%emt 0:03:48]} 23. Ke3 {[%emt 0:07:43]} Kf5 {[%emt 0:04:21]} 24. h3 {[%emt 0:01:23]} h5 {[%emt 0:02:02]} 25. Rc1 {[%emt 0:06:16]} Ke6 {[%emt 0:10:17]} 26. Rd1 {[%emt 0:08:43]} Rd4 {[%emt 0:06:17]} 27. b4 {[%emt 0:05:09]} a4 {[%emt 0:02:12]} 28. Rf1 {[%emt 0:14:51]} h4 {[%emt 0:15:43]} 29. g4 {[%emt 0:03:39]} c5 {[%emt 0:31:52]} 30. bxc5 {[%emt 0:13:08]} bxc5 {[%emt 0:00:07]} 31. f3 {[%emt 0:01:02]} f5 {[%emt 0:01:29]} 32. gxf5+ {[%emt 0:03:19]} gxf5 {[%emt 0:00:13]} 33. Rb1 {[%emt 0:01:10]} e4 {[%emt 0:01:33]} 34. Rb6+ {[%emt 0:00:25]} Kd7 {[%emt 0:00:30]} 35. fxe4 {[%emt 0:00:36]} fxe4 {[%emt 0:00:11]} 36. dxe4 {[%emt 0:00:21]} Rxc4 {[%emt 0:00:09]} 37. Kd3 {[%emt 0:00:40]} Rd4+ {[%emt 0:00:32]} 38. Ke3 {[%emt 0:00:27]} Rd1 {[%emt 0:01:07]} 39. Rh6 {[%emt 0:00:39]} c4 {[%emt 0:01:26]} 40. Ke2 {[%emt 0:00:58]} Rd4 {[%emt 0:06:55]} 41. Rxh4 {[%emt 0:02:23]} c3 {[%emt 0:12:42]} 42. Rh7+ {[%emt 0:19:46]} Kc6 {[%emt 0:05:36]} 43. Rh8 {[%emt 0:01:32]} Kd7 {[%emt 0:05:11]} 44. Rh7+ {[%emt 0:07:04]} Kc6 {[%emt 0:00:29]} 45. Rh8 {[%emt 0:00:07]} Kd7 {[%emt 0:00:16]} 46. Rg8 {[%emt 0:02:06]} Rxe4+ {[%emt 0:03:57]} 47. Kd3 {[%emt 0:01:25]} c2 {[%emt 0:01:01]} 48. Kxc2 {[%emt 0:02:01]} Re3 {[%emt 0:00:23]} 49. h4 {[%emt 0:00:48]} Rxa3 {[%emt 0:00:23]} 50. h5 {[%emt 0:00:59]} Rh3 {[%emt 0:00:13]} 1/2-1/2

[Event "Fagernes Chess GM-Swiss 2025"]
[Site "Fagernes"]
[Date "2025.04.20"]
[Round "9.25"]
[White "Brattgjerd, Isak Vinh"]
[Black "Simonsen, David Mindestrommen"]
[Result "1-0"]
[Annotator "ChessBase"]
[ECO "D00"]
[WhiteElo "2202"]
[BlackElo "2034"]
[PlyCount "63"]
[EventDate "2025.04.12"]
[EventCountry "NOR"]
[SourceTitle "playchess.com"]
[Source "ChessBase"]
[SourceQuality "1"]
[TimeControl "40/6000+30:2400+30"]

1. d4 {[%emt 0:01:57]} Nf6 {[%emt 0:00:10]} 2. Nc3 {[%emt 0:00:46]} d5 {[%emt 0:00:09]} 3. Bf4 {[%emt 0:00:05]} g6 {[%emt 0:00:48]} 4. e3 {[%emt 0:00:07]} Bg7 {[%emt 0:00:05]} 5. h4 {[%emt 0:00:15]} c5 {[%emt 0:02:04]} 6. Nb5 {[%emt 0:00:13]} Na6 {[%emt 0:00:17]} 7. c3 {[%emt 0:00:12]} h5 {[%emt 0:03:17]} 8. Nf3 {[%emt 0:00:13]} Bf5 {[%emt 0:01:53]} 9. Be2 {[%emt 0:03:58]} Ng4 {[%emt 0:03:16]} 10. O-O {[%emt 0:10:03]} O-O {[%emt 0:01:23]} 11. Qd2 {[%emt 0:02:32]} Bh6 {[%emt 0:02:11]} 12. Ng5 {[%emt 0:15:47]} f6 {[%emt 0:05:20]} 13. Nh3 {[%emt 0:10:48]} Bg7 {[%emt 0:03:21]} 14. Rfd1 {[%emt 0:02:05]} cxd4 {[%emt 0:00:40]} 15. exd4 {[%emt 0:00:07]} Kh7 {[%emt 0:00:27]} 16. Bg3 {[%emt 0:02:37]} Bh6 {[%emt 0:01:23]} 17. Nf4 {[%emt 0:05:36]} e5 {[%emt 0:01:51]} 18. dxe5 {[%emt 0:01:10]} fxe5 {[%emt 0:00:18]} 19. Qxd5 {[%emt 0:00:11]} Qb6 {[%emt 0:00:05]} 20. Nh3 {[%emt 0:10:06]} Nf6 {[%emt 0:04:16]} 21. Qd6 {[%emt 0:01:18]} Ne4 {[%emt 0:01:39]} 22. Qe7+ {[%emt 0:05:16]} Bg7 {[%emt 0:02:45]} 23. Bxe5 {[%emt 0:01:28]} Nf6 {[%emt 0:00:18]} 24. Ng5+ {[%emt 0:00:30]} Kh8 {[%emt 0:00:08]} 25. Nd6 {[%emt 0:05:34]} Rae8 {[%emt 0:00:17]} 26. Nxe8 {[%emt 0:00:42]} Rxe8 {[%emt 0:00:05]} 27. Qd6 {[%emt 0:00:59]} Qxb2 {[%emt 0:00:31]} 28. Qxf6 {[%emt 0:01:42]} Bxf6 {[%emt 0:01:06]} 29. Bxf6+ {[%emt 0:00:02]} Kg8 {[%emt 0:00:08]} 30. Bc4+ {[%emt 0:00:03]} Be6 {[%emt 0:00:11]} 31. Bxe6+ {[%emt 0:00:05]} Kf8 {[%emt 0:00:11]} 32. Nh7# {[%emt 0:00:04]} 1-0

[Event "Fagernes Chess GM-Swiss 2025"]
[Site "Fagernes"]
[Date "2025.04.20"]
[Round "9.26"]
[White "Holand, Per Fredrik"]
[Black "Westrum, Kim Roger Hansen"]
[Result "1/2-1/2"]
[Annotator "ChessBase"]
[ECO "C10"]
[WhiteElo "2070"]
[BlackElo "2193"]
[PlyCount "54"]
[EventDate "2025.04.12"]
[EventCountry "NOR"]
[SourceTitle "playchess.com"]
[Source "ChessBase"]
[SourceQuality "1"]
[TimeControl "40/6000+30:2400+30"]

1. e4 {[%emt 0:11:19]} e6 {[%emt 0:01:21]} 2. d4 {[%emt 0:00:29]} d5 {[%emt 0:00:10]} 3. Nc3 {[%emt 0:00:06]} Nc6 {[%emt 0:00:37]} 4. e5 {[%emt 0:03:03]} f6 {[%emt 0:00:10]} 5. Nf3 {[%emt 0:00:33]} Bd7 {[%emt 0:01:06]} 6. h4 {[%emt 0:01:50]} fxe5 {[%emt 0:17:33]} 7. dxe5 {[%emt 0:02:54]} Bb4 {[%emt 0:00:10]} 8. Bd2 {[%emt 0:03:14]} Qe7 {[%emt 0:01:21]} 9. Ne2 {[%emt 0:00:56]} Bxd2+ {[%emt 0:01:58]} 10. Qxd2 {[%emt 0:00:09]} Nh6 {[%emt 0:00:31]} 11. Ned4 {[%emt 0:07:10]} Nxd4 {[%emt 0:06:15]} 12. Nxd4 {[%emt 0:00:09]} a6 {[%emt 0:00:25]} 13. f4 {[%emt 0:02:00]} c5 {[%emt 0:01:55]} 14. Nf3 {[%emt 0:00:11]} Bc6 {[%emt 0:00:33]} 15. O-O-O {[%emt 0:03:10]} O-O-O {[%emt 0:01:06]} 16. Ng5 {[%emt 0:29:57]} Ng4 {[%emt 0:10:27]} 17. Qe2 {[%emt 0:13:02]} h5 {[%emt 0:00:26]} 18. g3 {[%emt 0:07:15]} d4 {[%emt 0:02:47]} 19. Bh3 {[%emt 0:02:10]} Bxh1 {[%emt 0:18:37]} 20. Rxh1 {[%emt 0:00:21]} Qd7 {[%emt 0:00:13]} 21. Bxg4 {[%emt 0:00:18]} hxg4 {[%emt 0:00:07]} 22. Qxg4 {[%emt 0:00:16]} Rhe8 {[%emt 0:00:15]} 23. Rd1 {[%emt 0:02:35]} Qd5 {[%emt 0:02:47]} 24. Kb1 {[%emt 0:00:09]} Rd7 {[%emt 0:10:08]} 25. Qe2 {[%emt 0:00:07]} Kc7 {[%emt 0:02:38]} 26. Ne4 {[%emt 0:01:54]} b5 {[%emt 0:00:27]} 27. Nd6 {[%emt 0:03:50]} Rxd6 {[%emt 0:04:07]} 1/2-1/2

[Event "Fagernes Chess GM-Swiss 2025"]
[Site "Fagernes"]
[Date "2025.04.20"]
[Round "9.27"]
[White "Gandrud, Vegar Koi"]
[Black "Berget, Eirik"]
[Result "1-0"]
[Annotator "ChessBase"]
[ECO "D02"]
[WhiteElo "2273"]
[BlackElo "2041"]
[PlyCount "137"]
[EventDate "2025.04.12"]
[EventCountry "NOR"]
[SourceTitle "playchess.com"]
[Source "ChessBase"]
[SourceQuality "1"]
[TimeControl "40/6000+30:2400+30"]

1. Nf3 {[%emt 0:00:04]} d5 {[%emt 0:04:15]} 2. g3 {[%emt 0:00:14]} c5 {[%emt 0:00:17]} 3. Bg2 {[%emt 0:00:14]} Nf6 {[%emt 0:00:19]} 4. O-O {[%emt 0:00:11]} Nc6 {[%emt 0:00:50]} 5. d4 {[%emt 0:00:08]} cxd4 {[%emt 0:01:03]} 6. Nxd4 {[%emt 0:00:06]} e5 {[%emt 0:00:30]} 7. Nxc6 {[%emt 0:00:20]} bxc6 {[%emt 0:00:05]} 8. c4 {[%emt 0:00:25]} Be7 {[%emt 0:06:21]} 9. Nc3 {[%emt 0:01:24]} Be6 {[%emt 0:02:41]} 10. Bg5 {[%emt 0:00:11]} O-O {[%emt 0:06:35]} 11. Bxf6 {[%emt 0:01:05]} Bxf6 {[%emt 0:00:07]} 12. cxd5 {[%emt 0:00:03]} cxd5 {[%emt 0:00:09]} 13. Bxd5 {[%emt 0:00:53]} Bh3 {[%emt 0:03:42]} 14. Bxa8 {[%emt 0:02:27]} Qxa8 {[%emt 0:02:40]} 15. Qd5 {[%emt 0:00:17]} Bxf1 {[%emt 0:00:11]} 16. Qxa8 {[%emt 0:00:45]} Rxa8 {[%emt 0:00:09]} 17. Kxf1 {[%emt 0:00:34]} Rb8 {[%emt 0:01:19]} 18. Rb1 {[%emt 0:00:27]} g6 {[%emt 0:00:26]} 19. b4 {[%emt 0:04:48]} Kf8 {[%emt 0:03:29]} 20. Nd5 {[%emt 0:00:41]} Bd8 {[%emt 0:00:22]} 21. Rb3 {[%emt 0:07:04]} Ke8 {[%emt 0:04:14]} 22. Ra3 {[%emt 0:00:58]} Rb5 {[%emt 0:00:41]} 23. e4 {[%emt 0:00:44]} a5 {[%emt 0:01:10]} 24. bxa5 {[%emt 0:01:08]} Bxa5 {[%emt 0:00:24]} 25. Rb3 {[%emt 0:06:55]} Rc5 {[%emt 0:03:36]} 26. Rb8+ {[%emt 0:06:57]} Bd8 {[%emt 0:05:16]} 27. Ra8 {[%emt 0:41:34]} Kd7 {[%emt 0:03:50]} 28. Ne3 {[%emt 0:10:42]} Bb6 {[%emt 0:03:03]} 29. Ra3 {[%emt 0:13:25]} Rc1+ {[%emt 0:03:48]} 30. Ke2 {[%emt 0:00:01]} Bd4 {[%emt 0:02:16]} 31. Rd3 {[%emt 0:00:27]} Ke6 {[%emt 0:03:55]} 32. Rd2 {[%emt 0:00:06]} f5 {[%emt 0:00:50]} 33. exf5+ {[%emt 0:02:23]} gxf5 {[%emt 0:00:08]} 34. f4 {[%emt 0:03:20]} Bxe3 {[%emt 0:07:36]} 35. Kxe3 {[%emt 0:00:01]} e4 {[%emt 0:00:32]} 36. Rb2 {[%emt 0:02:36]} Rd1 {[%emt 0:04:41]} 37. Rb6+ {[%emt 0:00:46]} Kd5 {[%emt 0:00:21]} 38. Rb5+ {[%emt 0:01:17]} Ke6 {[%emt 0:11:39]} 39. a4 {[%emt 0:00:05]} Rd3+ {[%emt 0:00:17]} 40. Kf2 {[%emt 0:00:45]} Ra3 {[%emt 0:00:42]} 41. a5 {[%emt 0:40:11]} Ra2+ {[%emt 0:43:30]} 42. Ke3 {[%emt 0:02:33]} Rxh2 {[%emt 0:01:46]} 43. Rb6+ {[%emt 0:00:06]} Ke7 {[%emt 0:01:12]} 44. a6 {[%emt 0:00:00]} Ra2 {[%emt 0:00:00]} 45. Rh6 {[%emt 0:00:00]} Kf8 {[%emt 0:00:00]} 46. Rf6+ {[%emt 0:00:00]} Kg7 {[%emt 0:00:00]} 47. Rxf5 {[%emt 0:00:00]} Rxa6 {[%emt 0:00:00]} 48. Kxe4 {[%emt 0:00:00]} Kg6 {[%emt 0:00:00]} 49. Rg5+ {[%emt 0:00:00]} Kf6 {[%emt 0:00:00]} 50. Kf3 {[%emt 0:00:00]} Ra8 {[%emt 0:00:00]} 51. Kg4 {[%emt 0:00:00]} Ra1 {[%emt 0:00:00]} 52. Rb5 {[%emt 0:00:00]} Ra6 {[%emt 0:00:00]} 53. Rb4 {[%emt 0:00:00]} Kg6 {[%emt 0:00:00]} 54. Kh4 {[%emt 0:00:00]} Rc6 {[%emt 0:00:00]} 55. Rb5 {[%emt 0:00:00]} h6 {[%emt 0:00:00]} 56. g4 {[%emt 0:00:00]} Rc1 {[%emt 0:00:00]} 57. f5+ {[%emt 0:00:00]} Kg7 {[%emt 0:00:00]} 58. Rb7+ {[%emt 0:00:00]} Kf6 {[%emt 0:00:00]} 59. Rb6+ {[%emt 0:00:00]} Kg7 {[%emt 0:00:00]} 60. Rg6+ {[%emt 0:00:00]} Kh7 {[%emt 0:00:00]} 61. Kg3 {[%emt 0:00:00]} Rc4 {[%emt 0:00:00]} 62. Kf3 {[%emt 0:00:00]} Ra4 {[%emt 0:00:00]} 63. Re6 {[%emt 0:00:00]} Kg7 {[%emt 0:00:00]} 64. Re7+ {[%emt 0:00:00]} Kf6 {[%emt 0:00:00]} 65. Rh7 {[%emt 0:00:00]} Ra3+ {[%emt 0:00:00]} 66. Kf4 {[%emt 0:00:00]} Ra4+ {[%emt 0:00:00]} 67. Kg3 {[%emt 0:00:00]} Kg5 {[%emt 0:00:00]} 68. Rg7+ {[%emt 0:00:00]} Kf6 {[%emt 0:00:00]} 69. Rg6+ {[%emt 0:00:00]} 1-0

[Event "Fagernes Chess GM-Swiss 2025"]
[Site "Fagernes"]
[Date "2025.04.20"]
[Round "9.28"]
[White "Halvorsen, Benjamin"]
[Black "Stromhaug, Kristoffer Wang"]
[Result "1-0"]
[Annotator "NA"]
[ECO "B38"]
[WhiteElo "1966"]
[BlackElo "2020"]
[PlyCount "65"]
[EventDate "2025.04.12"]
[EventCountry "NOR"]
[SourceTitle "playchess.com"]
[Source "ChessBase"]
[SourceQuality "1"]
[TimeControl "40/6000+30:2400+30"]

1. e4 {[%emt 0:11:42]} c5 {[%emt 0:00:06]} 2. Nf3 {[%emt 0:00:16]} g6 {[%emt 0:00:11]} 3. d4 {[%emt 0:00:14]} cxd4 {[%emt 0:00:25]} 4. Nxd4 {[%emt 0:00:11]} Bg7 {[%emt 0:00:05]} 5. c4 {[%emt 0:00:14]} Nc6 {[%emt 0:00:15]} 6. Be3 {[%emt 0:00:16]} Qb6 {[%emt 0:00:29]} 7. Nb3 {[%emt 0:00:42]} Qd8 {[%emt 0:00:08]} 8. Nd4 {[%emt 0:00:19]} d6 {[%emt 0:01:41]} 9. Nc3 {[%emt 0:03:21]} Nf6 {[%emt 0:02:15]} 10. Be2 {[%emt 0:01:17]} O-O {[%emt 0:00:28]} 11. O-O {[%emt 0:05:16]} Be6 {[%emt 0:05:57]} 12. Qd2 {[%emt 0:03:28]} Ne5 {[%emt 0:08:39]} 13. Nxe6 {[%emt 0:02:28]} fxe6 {[%emt 0:00:07]} 14. f3 {[%emt 0:00:52]} b6 {[%emt 0:03:52]} 15. Rac1 {[%emt 0:04:44]} Rc8 {[%emt 0:07:05]} 16. Nb5 {[%emt 0:03:54]} Nc6 {[%emt 0:02:23]} 17. Rfd1 {[%emt 0:03:48]} a6 {[%emt 0:08:18]} 18. Nc3 {[%emt 0:01:40]} e5 {[%emt 0:03:16]} 19. Nd5 {[%emt 0:03:43]} Nd7 {[%emt 0:04:25]} 20. c5 {[%emt 0:10:23]} bxc5 {[%emt 0:08:48]} 21. Bxa6 {[%emt 0:01:10]} Rb8 {[%emt 0:01:36]} 22. Nxe7+ {[%emt 0:02:43]} Qxe7 {[%emt 0:23:22]} 23. Qxd6 {[%emt 0:01:52]} Qh4 {[%emt 0:00:16]} 24. Qxc6 {[%emt 0:01:43]} Bh6 {[%emt 0:00:45]} 25. Bxh6 {[%emt 0:01:44]} Rxb2 {[%emt 0:00:11]} 26. Bc4+ {[%emt 0:01:55]} Kh8 {[%emt 0:00:16]} 27. Bg7+ {[%emt 0:01:12]} Kxg7 {[%emt 0:00:07]} 28. Qxd7+ {[%emt 0:00:09]} Kh8 {[%emt 0:00:48]} 29. Rd2 {[%emt 0:00:51]} Qg5 {[%emt 0:00:15]} 30. Rcd1 {[%emt 0:00:19]} Qe3+ {[%emt 0:00:04]} 31. Kh1 {[%emt 0:01:20]} Rfb8 {[%emt 0:00:22]} 32. Rxb2 {[%emt 0:00:40]} Rxb2 {[%emt 0:00:08]} 33. Qe8+ {[%emt 0:00:08]} 1-0